[Event "Championnat du monde jeunes U10"]
[Date "2024.11.23"]
[White "Fattori Dittmar, Luca"]
[Black "Vydra, David"]
[WhiteElo "1766"]
[BlackElo "1615"]
[Round "8.13"]
[Result "1-0"]
[TimeControl "5400+30"]

1. e4 {[%clk 1:30:58]} 1... c5 {[%clk 1:30:46]} 2. Nf3 {[%clk 1:31:23]} 2... d6
{[%clk 1:31:06]} 3. d4 {[%clk 1:31:46]} 3... cxd4 {[%clk 1:31:06]} 4. Nxd4
{[%clk 1:32:12]} 4... Nf6 {[%clk 1:30:56]} 5. Nc3 {[%clk 1:32:13]} 5... a6
{[%clk 1:30:51]} 6. h3 {[%clk 1:32:24]} 6... e5 {[%clk 1:30:35]} 7. Nf3 {[%clk
1:31:59]} 7... Be7 {[%clk 1:29:16]} 8. g4 {[%clk 1:32:01]} 8... Be6 {[%clk
1:23:11]} 9. g5 {[%clk 1:32:08]} 9... Nfd7 {[%clk 1:23:06]} 10. Be3 {[%clk
1:31:05]} 10... b5 {[%clk 1:19:05]} 11. Qd2 {[%clk 1:30:11]} 11... Nb6 {[%clk
1:17:18]} 12. O-O-O {[%clk 1:26:49]} 12... Nc4 {[%clk 1:15:36]} 13. Bxc4 {[%clk
1:27:09]} 13... bxc4 {[%clk 1:16:03]} 14. Nd5 {[%clk 1:26:45]} 14... Bxd5 {[%clk
1:12:49]} 15. Qxd5 {[%clk 1:27:01]} 15... Nd7 {[%clk 1:12:36]} 16. Qxc4 {[%clk
1:25:55]} 16... O-O {[%clk 1:05:31]} 17. h4 {[%clk 1:24:45]} 17... Qa5 {[%clk
1:02:20]} 18. Kb1 {[%clk 1:15:33]} 18... Rab8 {[%clk 1:00:21]} 19. h5 {[%clk
1:07:28]} 19... Rfc8 {[%clk 0:59:28]} 20. Qd3 {[%clk 1:06:34]} 20... Rc3 {[%clk
0:55:17]} 21. Qd2 {[%clk 1:05:06]} 21... Qb4 {[%clk 0:48:01]} 22. b3 {[%clk
1:02:23]} 22... Nc5 {[%clk 0:45:08]} 23. Bxc5 {[%clk 1:02:12]} 23... dxc5 {[%clk
0:43:36]} 24. Nxe5 {[%clk 1:01:24]} 24... Bxg5 {[%clk 0:30:23]} 25. f4 {[%clk
0:58:13]} 25... Bxf4 {[%clk 0:25:39]} 26. Qd8+ {[%clk 0:58:08]} 26... Rxd8
{[%clk 0:25:15]} 27. Rxd8# {[%clk 0:58:03]} 1-0

[Variant "Standard"]
[Site "Europe Echecs"]

[Event "Championnat du monde jeunes U10"]
[Date "2024.11.23"]
[White "Bartash, Saveli"]
[Black "Kostyukovich, Ivan"]
[WhiteElo "1661"]
[BlackElo "1489"]
[Round "8.17"]
[Result "1-0"]
[TimeControl "5400+30"]

1. e4 {[%clk 1:30:56]} 1... e5 {[%clk 1:30:55]} 2. Nf3 {[%clk 1:31:19]} 2... Nc6
{[%clk 1:31:14]} 3. Bc4 {[%clk 1:31:36]} 3... Bc5 {[%clk 1:31:35]} 4. O-O {[%clk
1:31:50]} 4... Nf6 {[%clk 1:31:55]} 5. Re1 {[%clk 1:32:01]} 5... d6 {[%clk
1:32:12]} 6. c3 {[%clk 1:32:06]} 6... O-O {[%clk 1:32:00]} 7. d3 {[%clk
1:32:15]} 7... h6 {[%clk 1:32:14]} 8. Nbd2 {[%clk 1:31:34]} 8... Ne7 {[%clk
1:31:46]} 9. Nf1 {[%clk 1:30:40]} 9... Ng6 {[%clk 1:31:56]} 10. Ng3 {[%clk
1:28:47]} 10... Be6 {[%clk 1:30:27]} 11. Bxe6 {[%clk 1:26:34]} 11... fxe6 {[%clk
1:30:30]} 12. Qc2 {[%clk 1:19:45]} 12... Ng4 {[%clk 1:24:00]} 13. d4 {[%clk
1:15:59]} 13... Bb6 {[%clk 1:20:37]} 14. h3 {[%clk 1:13:55]} 14... Nf6 {[%clk
1:20:31]} 15. dxe5 {[%clk 1:11:12]} 15... Nxe5 {[%clk 1:20:42]} 16. Nxe5 {[%clk
1:11:07]} 16... dxe5 {[%clk 1:21:07]} 17. Be3 {[%clk 1:10:17]} 17... Bxe3 {[%clk
1:20:58]} 18. Rxe3 {[%clk 1:09:20]} 18... Qe7 {[%clk 1:21:04]} 19. Rd1 {[%clk
1:07:40]} 19... Rfd8 {[%clk 1:19:55]} 20. Red3 {[%clk 1:05:07]} 20... Rd6 {[%clk
1:17:08]} 21. Qb3 {[%clk 1:03:25]} 21... Rb6 {[%clk 1:15:23]} 22. Qc2 {[%clk
1:03:09]} 22... Rd6 {[%clk 1:15:34]} 23. Rxd6 {[%clk 1:02:24]} 23... cxd6 {[%clk
1:15:52]} 24. Qb3 {[%clk 1:01:15]} 24... g6 {[%clk 1:14:18]} 25. Qa3 {[%clk
0:59:06]} 25... Ne8 {[%clk 1:11:04]} 26. Nf1 {[%clk 0:56:18]} 26... a6 {[%clk
1:10:09]} 27. Ne3 {[%clk 0:54:26]} 27... Rd8 {[%clk 1:08:46]} 28. Nc4 {[%clk
0:52:39]} 28... Qc7 {[%clk 1:07:51]} 29. Qb3 {[%clk 0:50:56]} 29... Kf7 {[%clk
1:04:58]} 30. Ne3 {[%clk 0:43:07]} 30... Nf6 {[%clk 1:04:14]} 31. Qc2 {[%clk
0:38:11]} 31... Qc6 {[%clk 1:03:44]} 32. Ng4 {[%clk 0:35:09]} 32... Nxg4 {[%clk
1:02:28]} 33. hxg4 {[%clk 0:35:30]} 33... d5 {[%clk 1:02:17]} 34. exd5 {[%clk
0:35:25]} 34... exd5 {[%clk 1:01:47]} 35. Qd3 {[%clk 0:34:44]} 35... Rd6 {[%clk
0:57:46]} 36. Qe3 {[%clk 0:33:15]} 36... Qa4 {[%clk 0:55:38]} 37. Re1 {[%clk
0:31:56]} 37... Qxg4 {[%clk 0:53:41]} 38. Qxe5 {[%clk 0:31:56]} 38... Qd7 {[%clk
0:51:32]} 39. Qh8 {[%clk 0:29:30]} 39... g5 {[%clk 0:49:44]} 40. Re3 {[%clk
0:27:50]} 40... Kg6 {[%clk 0:41:30]} 41. Qg8+ {[%clk 0:26:44]} 41... Qg7 {[%clk
0:41:41]} 42. Qxg7+ {[%clk 0:26:20]} 42... Kxg7 {[%clk 0:41:57]} 43. Re7+ {[%clk
0:26:44]} 43... Kf6 {[%clk 0:41:44]} 44. Rxb7 {[%clk 0:27:03]} 44... Ke5 {[%clk
0:41:34]} 45. Re7+ {[%clk 0:25:12]} 45... Re6 {[%clk 0:40:54]} 46. Rxe6+ {[%clk
0:24:48]} 46... Kxe6 {[%clk 0:40:52]} 47. Kf1 {[%clk 0:24:11]} 47... Kd6 {[%clk
0:40:32]} 48. Ke2 {[%clk 0:24:12]} 48... Kc5 {[%clk 0:40:22]} 49. Kd3 {[%clk
0:24:21]} 49... h5 {[%clk 0:39:55]} 50. b4+ {[%clk 0:23:41]} 50... Kc6 {[%clk
0:38:50]} 51. Kd4 {[%clk 0:23:44]} 51... h4 {[%clk 0:39:02]} 52. f3 {[%clk
0:24:04]} 52... Kd6 {[%clk 0:39:20]} 53. a4 {[%clk 0:24:10]} 53... Kc6 {[%clk
0:39:13]} 54. b5+ {[%clk 0:24:21]} 54... axb5 {[%clk 0:38:57]} 55. axb5+ {[%clk
0:24:43]} 55... Kd6 {[%clk 0:39:25]} 56. b6 {[%clk 0:25:03]} 56... Kc6 {[%clk
0:39:49]} 57. b7 {[%clk 0:25:23]} 57... Kxb7 {[%clk 0:40:08]} 58. Kxd5 {[%clk
0:25:37]} 58... Kc7 {[%clk 0:40:26]} 59. Ke5 {[%clk 0:25:56]} 59... Kd7 {[%clk
0:40:41]} 60. Kf5 {[%clk 0:26:20]} 60... Ke7 {[%clk 0:40:58]} 1-0

[Variant "Standard"]
[Site "Europe Echecs"]

[Event "Championnat du monde jeunes U10"]
[Date "2024.11.23"]
[White "Wu, Chenyu"]
[Black "Button-Rabl, Jiban"]
[WhiteElo "1503"]
[BlackElo "1435"]
[Round "8.18"]
[Result "1-0"]
[TimeControl "5400+30"]

1. d4 {[%clk 1:30:57]} 1... d5 2. c4 {[%clk 1:31:19]} 2... e6 {[%clk 1:30:45]}
3. Nc3 {[%clk 1:30:16]} 3... c6 {[%clk 1:31:06]} 4. Nf3 {[%clk 1:30:41]} 4...
Nf6 {[%clk 1:31:19]} 5. Bg5 {[%clk 1:30:41]} 5... Nbd7 {[%clk 1:31:27]} 6. e3
{[%clk 1:30:57]} 6... Bd6 {[%clk 1:31:14]} 7. Bd3 {[%clk 1:30:54]} 7... dxc4
{[%clk 1:31:30]} 8. Bxc4 {[%clk 1:31:10]} 8... b5 {[%clk 1:31:49]} 9. Bd3 {[%clk
1:30:24]} 9... Bb7 {[%clk 1:32:10]} 10. O-O {[%clk 1:30:12]} 10... a6 {[%clk
1:32:18]} 11. e4 {[%clk 1:24:32]} 11... Be7 {[%clk 1:27:59]} 12. e5 {[%clk
1:21:59]} 12... Nd5 {[%clk 1:27:47]} 13. Bxe7 {[%clk 1:22:23]} 13... Qxe7 {[%clk
1:27:53]} 14. Ne4 {[%clk 1:22:39]} 14... O-O {[%clk 1:26:17]} 15. Nd6 {[%clk
1:21:05]} 15... Rab8 {[%clk 1:26:20]} 16. Rc1 {[%clk 1:20:48]} 16... f6 {[%clk
1:26:07]} 17. Nxb7 {[%clk 1:19:19]} 17... Rxb7 {[%clk 1:26:06]} 18. Rxc6 {[%clk
1:18:29]} 18... Nb4 {[%clk 1:26:06]} 19. Rd6 {[%clk 1:16:59]} 19... fxe5 {[%clk
1:25:50]} 20. dxe5 {[%clk 1:17:22]} 20... Kh8 {[%clk 1:24:39]} 21. Be4 {[%clk
1:16:17]} 21... Ra7 {[%clk 1:23:17]} 22. Qd4 {[%clk 1:15:50]} 22... Rc7 {[%clk
1:19:36]} 23. Qxb4 {[%clk 1:15:34]} 23... Rc4 {[%clk 1:19:33]} 24. Qd2 {[%clk
1:15:48]} 24... Nxe5 {[%clk 1:19:06]} 25. Nxe5 {[%clk 1:15:42]} 25... Rxe4
{[%clk 1:19:23]} 26. Nc6 {[%clk 1:14:54]} 26... Qf6 {[%clk 1:18:56]} 27. Rd8
{[%clk 1:15:06]} 27... Ra4 {[%clk 1:18:20]} 28. Rxf8+ {[%clk 1:14:31]} 28...
Qxf8 {[%clk 1:17:57]} 29. b3 {[%clk 1:10:47]} 29... Rg4 {[%clk 1:17:56]} 30. Rd1
{[%clk 1:10:01]} 30... h6 {[%clk 1:18:08]} 31. Ne5 {[%clk 1:09:20]} 31... Rg5
{[%clk 1:17:45]} 32. Qxg5 {[%clk 1:09:09]} 32... hxg5 {[%clk 1:17:08]} 33. Ng6+
{[%clk 1:09:38]} 33... Kg8 {[%clk 1:17:11]} 34. Nxf8 {[%clk 1:10:04]} 34... Kxf8
{[%clk 1:17:34]} 35. Rd6 {[%clk 1:10:30]} 1-0

[Variant "Standard"]
[Site "Europe Echecs"]

[Event "Championnat du monde jeunes U10"]
[Date "2024.11.23"]
[White "Zilincan, Tomas"]
[Black "Loberti, Tommaso"]
[WhiteElo "1778"]
[BlackElo "1474"]
[Round "8.19"]
[Result "1-0"]
[TimeControl "5400+30"]

1. d4 {[%clk 1:30:57]} 1... d5 {[%clk 1:30:51]} 2. Nf3 {[%clk 1:31:19]} 2... Nf6
{[%clk 1:31:02]} 3. e3 Bf5 {[%clk 1:29:15]} 4. Bd3 {[%clk 1:31:41]} 4... Bxd3
{[%clk 1:28:40]} 5. Qxd3 {[%clk 1:32:03]} 5... c6 {[%clk 1:24:18]} 6. O-O {[%clk
1:32:24]} 6... e6 {[%clk 1:20:25]} 7. Nbd2 {[%clk 1:32:35]} 7... Bd6 {[%clk
1:17:11]} 8. c4 {[%clk 1:32:40]} 8... O-O {[%clk 1:11:09]} 9. a3 Nbd7 {[%clk
1:07:57]} 10. b4 {[%clk 1:27:27]} 10... Re8 {[%clk 1:03:29]} 11. c5 {[%clk
1:27:38]} 11... Bc7 {[%clk 1:02:00]} 12. Bb2 {[%clk 1:27:56]} 12... Nf8 {[%clk
0:56:53]} 13. a4 {[%clk 1:27:18]} 13... Ng6 {[%clk 0:52:01]} 14. b5 {[%clk
1:27:00]} 14... Qd7 {[%clk 0:48:51]} 15. Ne5 {[%clk 1:26:13]} 15... Bxe5 {[%clk
0:47:41]} 16. dxe5 {[%clk 1:26:35]} 16... Ng4 {[%clk 0:47:21]} 17. f4 {[%clk
1:25:34]} 17... Qe7 {[%clk 0:43:47]} 18. Bd4 {[%clk 1:24:27]} 18... Nh6 {[%clk
0:41:17]} 19. e4 {[%clk 1:23:41]} 19... Rad8 {[%clk 0:38:30]} 20. exd5 {[%clk
1:22:25]} 20... Rxd5 {[%clk 0:37:37]} 21. Nb3 {[%clk 1:20:07]} 21... Red8 {[%clk
0:36:32]} 22. Qc4 {[%clk 1:19:47]} 22... Nf5 {[%clk 0:35:32]} 23. Bf2 {[%clk
1:19:21]} 23... Rd3 {[%clk 0:33:21]} 24. Na5 {[%clk 1:18:51]} 24... Qc7 {[%clk
0:29:23]} 25. b6 {[%clk 1:19:02]} 25... axb6 {[%clk 0:29:46]} 26. cxb6 {[%clk
1:19:23]} 26... Qd7 {[%clk 0:29:06]} 27. Nb3 {[%clk 1:18:48]} 27... Qd5 {[%clk
0:29:10]} 28. Qxd5 {[%clk 1:18:42]} 28... R8xd5 {[%clk 0:27:58]} 29. Nc5 {[%clk
1:18:48]} 29... Rc3 {[%clk 0:27:08]} 30. Nxb7 {[%clk 1:18:11]} 30... Nxf4 {[%clk
0:22:17]} 31. a5 {[%clk 1:17:50]} 31... Rxe5 {[%clk 0:22:07]} 32. a6 {[%clk
1:16:12]} 32... Ne2+ {[%clk 0:18:52]} 33. Kh1 {[%clk 1:16:36]} 33... Nfg3+
{[%clk 0:17:19]} 34. Bxg3 {[%clk 1:16:50]} 34... Rh5 {[%clk 0:16:21]} 35. Rf3
{[%clk 1:15:10]} 35... Nxg3+ {[%clk 0:15:04]} 36. Rxg3 {[%clk 1:15:27]} 36...
Rxg3 {[%clk 0:15:20]} 37. a7 {[%clk 1:15:47]} 1-0

[Variant "Standard"]
[Site "Europe Echecs"]

[Event "Championnat du monde jeunes U10"]
[Date "2024.11.23"]
[White "Osmolovskii, Nikita"]
[Black "Prokhorov, Makar"]
[WhiteElo "1468"]
[BlackElo "1771"]
[Round "8.20"]
[Result "0-1"]
[TimeControl "5400+30"]

1. e4 {[%clk 1:30:54]} 1... c5 {[%clk 1:31:00]} 2. Nf3 {[%clk 1:31:17]} 2... Nc6
{[%clk 1:31:25]} 3. d4 {[%clk 1:31:42]} 3... cxd4 {[%clk 1:31:50]} 4. Nxd4
{[%clk 1:32:07]} 4... g6 {[%clk 1:32:12]} 5. Nc3 {[%clk 1:32:28]} 5... Bg7
{[%clk 1:32:35]} 6. Be3 {[%clk 1:32:53]} 6... Nf6 {[%clk 1:32:54]} 7. f3 O-O
{[%clk 1:33:16]} 8. Bc4 {[%clk 1:33:17]} 8... d6 {[%clk 1:33:07]} 9. Qd2 {[%clk
1:33:32]} 9... Bd7 {[%clk 1:33:08]} 10. O-O-O {[%clk 1:33:34]} 10... Rc8 {[%clk
1:33:27]} 11. Bd3 {[%clk 1:33:40]} 11... Ne5 {[%clk 1:33:22]} 12. Kb1 {[%clk
1:33:20]} 12... a6 {[%clk 1:32:51]} 13. h4 {[%clk 1:32:10]} 13... b5 {[%clk
1:31:56]} 14. g4 {[%clk 1:22:09]} 14... Nc4 {[%clk 1:31:28]} 15. Bxc4 {[%clk
1:20:27]} 15... bxc4 {[%clk 1:30:19]} 16. Bh6 Qb6 {[%clk 1:29:49]} 17. h5 {[%clk
1:17:06]} 17... Rb8 {[%clk 1:28:27]} 18. b3 {[%clk 1:16:11]} 18... cxb3 {[%clk
1:15:27]} 19. cxb3 {[%clk 1:12:29]} 19... Rbc8 {[%clk 1:04:30]} 20. hxg6 {[%clk
1:03:17]} 20... fxg6 {[%clk 0:53:42]} 21. Bxg7 {[%clk 0:47:10]} 21... Kxg7
{[%clk 0:48:11]} 22. Qh6+ {[%clk 0:38:37]} 22... Kf7 {[%clk 0:41:36]} 23. Kb2
{[%clk 0:36:50]} 23... Qc5 {[%clk 0:31:39]} 24. Rd3 {[%clk 0:32:37]} 24... g5
{[%clk 0:19:38]} 25. Na4 {[%clk 0:29:45]} 25... Bxa4 {[%clk 0:17:13]} 26. bxa4
{[%clk 0:25:47]} 26... Rb8+ {[%clk 0:14:23]} 27. Nb3 {[%clk 0:22:01]} 27... Rfc8
{[%clk 0:14:28]} 28. Qh2 {[%clk 0:18:58]} 28... Qc4 {[%clk 0:14:20]} 29. Qd2
{[%clk 0:17:57]} 29... Qxa4 {[%clk 0:11:06]} 30. Qxg5 {[%clk 0:14:36]} 30... Qc4
{[%clk 0:06:25]} 31. Qd2 {[%clk 0:13:59]} 31... a5 {[%clk 0:05:52]} 32. Rc1
{[%clk 0:12:32]} 32... Qb5 {[%clk 0:05:52]} 33. Rxc8 {[%clk 0:09:15]} 33... Rxc8
{[%clk 0:06:04]} 34. g5 {[%clk 0:09:14]} 34... Nd7 {[%clk 0:04:32]} 35. Rd5
{[%clk 0:09:23]} 35... Nc5 {[%clk 0:04:12]} 36. Qxa5 {[%clk 0:08:59]} 36... Nd3+
{[%clk 0:01:19]} 37. Rxd3 {[%clk 0:08:20]} 37... Qxa5 38. Nxa5 {[%clk 0:08:37]}
38... Rc5 {[%clk 0:00:57]} 39. Rd5 {[%clk 0:08:43]} 39... Rc8 {[%clk 0:01:10]}
40. Nb7 {[%clk 0:08:56]} 40... Rb8 {[%clk 0:01:37]} 41. Rb5 {[%clk 0:09:08]}
41... Ra8 {[%clk 0:01:55]} 42. Kb3 {[%clk 0:09:13]} 42... Ke6 {[%clk 0:02:20]}
43. Na5 {[%clk 0:09:25]} 43... Rf8 {[%clk 0:02:43]} 44. Rf5 {[%clk 0:08:58]}
44... Rxf5 {[%clk 0:03:09]} 45. exf5+ {[%clk 0:09:24]} 45... Kxf5 {[%clk
0:03:38]} 46. Nc6 {[%clk 0:09:25]} 46... Kxg5 {[%clk 0:04:04]} 47. a4 {[%clk
0:09:40]} 47... h5 {[%clk 0:04:31]} 48. a5 h4 {[%clk 0:04:55]} 49. Nd4 {[%clk
0:09:37]} 49... h3 {[%clk 0:04:22]} 50. Ne2 {[%clk 0:09:47]} 50... Kh4 {[%clk
0:04:39]} 51. a6 {[%clk 0:10:00]} 51... h2 {[%clk 0:05:06]} 52. a7 {[%clk
0:10:16]} 52... h1=Q {[%clk 0:05:13]} 53. a8=Q Qd1+ {[%clk 0:05:28]} 54. Kc3
{[%clk 0:10:39]} 54... Qxe2 {[%clk 0:05:49]} 55. Qh8+ {[%clk 0:10:38]} 55... Kg3
{[%clk 0:05:52]} 56. Qg7+ {[%clk 0:10:32]} 56... Kxf3 {[%clk 0:03:33]} 57. Qf7+
{[%clk 0:10:52]} 57... Kg2 {[%clk 0:03:53]} 58. Qg6+ {[%clk 0:11:10]} 58... Kf1
{[%clk 0:04:19]} 59. Qb1+ {[%clk 0:10:51]} 59... Qe1+ {[%clk 0:04:47]} 60. Qxe1+
{[%clk 0:09:48]} 60... Kxe1 {[%clk 0:05:15]} 61. Kd4 {[%clk 0:10:14]} 61... e6
{[%clk 0:05:12]} 62. Ke4 {[%clk 0:10:29]} 62... Ke2 {[%clk 0:05:35]} 63. Kd4
{[%clk 0:10:29]} 63... Kf3 {[%clk 0:05:54]} 64. Kd3 {[%clk 0:10:24]} 64... e5
{[%clk 0:06:18]} 65. Kd2 {[%clk 0:10:15]} 65... Kf2 {[%clk 0:06:17]} 66. Kd3
{[%clk 0:10:36]} 66... d5 {[%clk 0:06:43]} 67. Kd2 {[%clk 0:10:44]} 67... e4
{[%clk 0:07:11]} 68. Kd1 {[%clk 0:10:12]} 68... e3 {[%clk 0:07:26]} 69. Kc2
{[%clk 0:10:29]} 69... e2 {[%clk 0:07:52]} 70. Kd3 {[%clk 0:10:48]} 70... e1=Q
{[%clk 0:07:54]} 71. Kd4 {[%clk 0:10:56]} 71... Qe3+ {[%clk 0:08:15]} 72. Kxd5
{[%clk 0:11:13]} 72... Qf4 {[%clk 0:08:38]} 73. Kc5 {[%clk 0:11:24]} 73... Qe4
{[%clk 0:09:02]} 74. Kd6 {[%clk 0:11:37]} 74... Qf5 {[%clk 0:09:26]} 75. Ke7
{[%clk 0:11:58]} 75... Qg6 {[%clk 0:09:52]} 76. Kd7 {[%clk 0:11:31]} 76... Ke3
{[%clk 0:10:16]} 77. Kd8 {[%clk 0:11:35]} 77... Qf7 {[%clk 0:10:40]} 78. Kc8
{[%clk 0:12:00]} 78... Kd4 {[%clk 0:11:04]} 79. Kd8 {[%clk 0:11:52]} 79... Kc5
{[%clk 0:11:29]} 80. Kc8 {[%clk 0:11:34]} 80... Kc6 {[%clk 0:11:53]} 81. Kd8
{[%clk 0:11:55]} 81... Qd7# {[%clk 0:12:17]} 0-1

[Variant "Standard"]
[Site "Europe Echecs"]

[Event "Championnat du monde jeunes U10"]
[Date "2024.11.23"]
[White "Vukashinovikj, Jovan"]
[Black "Enkhbileg, Gantumur"]
[WhiteElo "1454"]
[BlackElo "1529"]
[Round "8.25"]
[Result "1-0"]
[TimeControl "5400+30"]

1. e4 {[%clk 1:30:56]} 1... d6 {[%clk 1:26:53]} 2. d4 {[%clk 1:31:12]} 2... Nf6
{[%clk 1:27:13]} 3. Nc3 {[%clk 1:31:33]} 3... g6 {[%clk 1:26:35]} 4. f4 {[%clk
1:30:43]} 4... Bg7 {[%clk 1:26:52]} 5. Nf3 {[%clk 1:31:01]} 5... Bg4 {[%clk
1:26:19]} 6. h3 {[%clk 1:31:13]} 6... Bxf3 {[%clk 1:26:41]} 7. Qxf3 {[%clk
1:31:21]} 7... Nc6 {[%clk 1:25:23]} 8. Bb5 {[%clk 1:26:37]} 8... O-O {[%clk
1:23:54]} 9. Bxc6 {[%clk 1:24:51]} 9... bxc6 {[%clk 1:24:15]} 10. O-O {[%clk
1:24:59]} 10... Nd7 {[%clk 1:23:57]} 11. Be3 {[%clk 1:24:44]} 11... Rb8 {[%clk
1:22:51]} 12. Rab1 Nb6 {[%clk 1:22:28]} 13. Qe2 {[%clk 1:22:28]} 13... e5 {[%clk
1:17:05]} 14. dxe5 {[%clk 1:22:27]} 14... dxe5 {[%clk 1:17:10]} 15. f5 {[%clk
1:20:48]} 15... Qe7 {[%clk 0:32:06]} 16. b4 {[%clk 1:17:40]} 16... gxf5 {[%clk
0:29:08]} 17. Bc5 {[%clk 1:17:42]} 17... Qh4 {[%clk 0:25:40]} 18. Bxf8 {[%clk
1:18:00]} 18... Rxf8 {[%clk 0:24:41]} 19. Rxf5 {[%clk 1:18:09]} 19... Qe7 {[%clk
0:01:35]} 20. Qg4 {[%clk 1:18:07]} 20... Nc4 {[%clk 0:01:33]} 21. Qe2 {[%clk
1:17:45]} 21... Qe6 {[%clk 0:00:50]} 22. Rbf1 {[%clk 1:17:46]} 22... Bh6 {[%clk
0:00:34]} 23. Rf6 {[%clk 1:14:55]} 23... Be3+ {[%clk 0:00:47]} 24. Kh1 {[%clk
1:15:16]} 24... Qd7 {[%clk 0:00:33]} 25. Qxc4 {[%clk 1:15:33]} 25... Bd4 {[%clk
0:00:32]} 26. Qd3 {[%clk 1:15:24]} 26... Qe7 {[%clk 0:00:35]} 27. Ne2 {[%clk
1:15:16]} 27... Bb6 {[%clk 0:00:34]} 28. Ng3 {[%clk 1:15:11]} 28... Rd8 {[%clk
0:00:33]} 29. Qf3 {[%clk 1:15:18]} 29... Rf8 {[%clk 0:00:31]} 30. Nh5 {[%clk
1:15:39]} 1-0

[Variant "Standard"]
[Site "Europe Echecs"]

[Event "Championnat du monde jeunes U10"]
[Date "2024.11.24"]
[White "Advik Amit Agrawal"]
[Black "Shogdzhiev, Roman"]
[WhiteElo "1982"]
[BlackElo "2202"]
[Round "9.1"]
[Result "0-1"]
[TimeControl "5400+30"]

1. e4 {[%clk 1:30:25]} 1... c5 {[%clk 1:31:00]} 2. Nf3 {[%clk 1:30:43]} 2... d6
{[%clk 1:31:26]} 3. Bb5+ {[%clk 1:30:44]} 3... Nd7 {[%clk 1:31:56]} 4. d4 {[%clk
1:30:52]} 4... cxd4 {[%clk 1:32:21]} 5. Qxd4 {[%clk 1:31:14]} 5... a6 {[%clk
1:32:46]} 6. Bxd7+ Bxd7 {[%clk 1:33:06]} 7. O-O {[%clk 1:31:27]} 7... Rc8 {[%clk
1:32:56]} 8. Nc3 {[%clk 1:31:19]} 8... e5 {[%clk 1:32:59]} 9. Qd3 {[%clk
1:31:11]} 9... Be6 {[%clk 1:31:52]} 10. Rd1 {[%clk 1:30:50]} 10... Qc7 {[%clk
1:32:32]} 11. a4 {[%clk 1:30:32]} 11... h6 {[%clk 1:31:55]} 12. Nd2 {[%clk
1:28:15]} 12... Nf6 {[%clk 1:30:59]} 13. Nf1 {[%clk 1:28:25]} 13... Be7 {[%clk
1:31:02]} 14. Ne3 {[%clk 1:28:44]} 14... O-O {[%clk 1:31:10]} 15. a5 {[%clk
1:27:26]} 15... Rfd8 {[%clk 1:31:03]} 16. Ncd5 {[%clk 1:25:45]} 16... Nxd5
{[%clk 1:30:29]} 17. exd5 {[%clk 1:24:05]} 17... Bd7 {[%clk 1:30:52]} 18. c3
{[%clk 1:20:58]} 18... Bg5 {[%clk 1:23:14]} 19. Bd2 {[%clk 1:19:17]} 19... Re8
{[%clk 1:21:50]} 20. Qe4 {[%clk 1:16:32]} 20... Rf8 {[%clk 1:20:43]} 21. Nf5
{[%clk 1:13:47]} 21... Bxf5 {[%clk 1:17:17]} 22. Qxf5 {[%clk 1:13:53]} 22...
Bxd2 {[%clk 1:16:03]} 23. Rxd2 {[%clk 1:14:21]} 23... Qe7 {[%clk 1:14:49]} 24.
Ra4 {[%clk 1:11:14]} 24... Rc5 {[%clk 1:14:34]} 25. h4 {[%clk 1:09:24]} 25... g6
{[%clk 1:11:02]} 26. Qg4 {[%clk 1:08:23]} 26... h5 {[%clk 1:09:46]} 27. Qg3
{[%clk 1:08:05]} 27... Qd7 {[%clk 1:09:04]} 28. Ra1 {[%clk 1:07:29]} 28... Qg4
{[%clk 1:08:57]} 29. Qxg4 {[%clk 1:05:17]} 29... hxg4 {[%clk 1:09:03]} 30. Ra4
{[%clk 1:05:43]} 30... f5 {[%clk 1:08:50]} 31. c4 {[%clk 1:05:48]} 31... Rf7
{[%clk 1:07:43]} 32. b3 {[%clk 1:05:59]} 32... Kg7 {[%clk 1:06:08]} 33. Rc2
{[%clk 1:03:34]} 33... Rfc7 {[%clk 1:06:25]} 34. Re2 {[%clk 1:02:16]} 34... Kf6
{[%clk 1:02:36]} 35. Kf1 {[%clk 0:59:43]} 35... f4 {[%clk 1:01:04]} 36. Ra1
{[%clk 0:58:47]} 36... Rh7 {[%clk 1:00:57]} 37. g3 {[%clk 0:57:24]} 37... f3
{[%clk 1:00:27]} 38. Rc2 {[%clk 0:55:38]} 38... g5 {[%clk 1:00:06]} 39. Ke1
{[%clk 0:55:45]} 39... gxh4 {[%clk 0:58:50]} 40. gxh4 {[%clk 0:56:05]} 40...
Rxh4 {[%clk 0:57:50]} 41. Kd2 {[%clk 0:56:13]} 41... g3 {[%clk 0:56:16]} 42. Rc3
{[%clk 0:46:05]} 42... e4 {[%clk 0:55:34]} 43. fxg3 {[%clk 0:42:25]} 43... Rh2+
{[%clk 0:55:57]} 44. Ke3 {[%clk 0:40:07]} 44... Ke5 {[%clk 0:54:57]} 45. Re1
{[%clk 0:40:05]} 45... Rxa5 {[%clk 0:55:17]} 46. Rcc1 {[%clk 0:38:07]} 46... Ra3
{[%clk 0:55:13]} 47. Rb1 {[%clk 0:38:14]} 47... Raa2 0-1

[Variant "Standard"]
[Site "Europe Echecs"]